bitfinex/quotes_BTCUSD_20230905
["timestamp","ask_amount","ask_price","bid_price","bid_amount"]
[1693945176939,0.0429582,25712.0,25711.0,3.93380044]
[1693945177139,0.0429582,25712.0,25711.0,3.93344044]
[1693945177541,0.0429582,25712.0,25711.0,3.93308044]
[1693945177748,0.0429582,25712.0,25711.0,3.93296044]
[1693945177972,0.0429582,25712.0,25711.0,3.93308044]
[1693945178183,0.0429582,25712.0,25711.0,4.1188082]
[1693945178401,0.0429582,25712.0,25711.0,4.1185682]
[1693945178602,0.0429582,25712.0,25711.0,4.1179682]
[1693945178845,0.0429582,25712.0,25711.0,4.1173682]
[1693945179060,0.0429582,25712.0,25711.0,4.1152082]
[1693945179262,0.0429582,25712.0,25711.0,4.1159282]
[1693945179439,0.0429582,25712.0,25711.0,4.1160482]
[1693945179636,0.0429582,25712.0,25711.0,4.1156882]
[1693945179963,0.0429582,25712.0,25711.0,4.1155682]
[1693945180122,0.0429582,25712.0,25711.0,4.1149682]
[1693945180320,0.0429582,25712.0,25711.0,4.1135282]
[1693945180486,0.0429582,25712.0,25711.0,4.1137682]
[1693945180887,0.0429582,25712.0,25711.0,4.1135282]
[1693945181127,0.0429582,25712.0,25711.0,4.1131682]
[1693945181344,0.0429582,25712.0,25711.0,4.1128082]
[1693945181649,0.011,25712.0,25711.0,4.1111282]
[1693945181856,0.011,25712.0,25711.0,4.1107682]
[1693945182057,0.011,25712.0,25711.0,4.1101682]
[1693945182296,0.011,25712.0,25711.0,4.1102882]
[1693945182496,0.011,25712.0,25711.0,4.1112482]
[1693945182705,0.011,25712.0,25711.0,4.1110082]
[1693945182940,0.011,25712.0,25711.0,4.1100482]
[1693945183133,0.011,25712.0,25711.0,4.1094482]
[1693945183347,0.011,25712.0,25711.0,4.1114882]
[1693945183587,0.011,25712.0,25711.0,4.1106482]
[1693945183789,0.011,25712.0,25711.0,4.1104082]
[1693945183990,0.011,25712.0,25711.0,4.1106482]
[1693945184195,0.011,25712.0,25711.0,4.1102882]
[1693945184346,0.011,25712.0,25711.0,4.1100482]
[1693945184549,0.011,25712.0,25711.0,4.1395282]
[1693945184758,0.011,25712.0,25711.0,4.3598482]
[1693945184966,0.011,25712.0,25711.0,4.3877482]
[1693945185163,0.011,25712.0,25711.0,4.3875682]
[1693945185386,0.011,25712.0,25711.0,4.3800082]
[1693945185594,0.011,25712.0,25711.0,4.3774882]
[1693945185790,0.011,25712.0,25711.0,4.3760482]
[1693945185946,0.011,25712.0,25711.0,4.3753282]
[1693945186147,0.011,25712.0,25711.0,4.3747882]
[1693945186409,0.011,25712.0,25711.0,4.3744282]
[1693945186564,0.011,25712.0,25711.0,4.3717282]
[1693945186765,0.011,25712.0,25711.0,4.3711882]
[1693945186991,0.011,25712.0,25711.0,4.3702882]
[1693945187184,0.011,25712.0,25711.0,4.3695682]
[1693945187474,0.011,25712.0,25711.0,4.3641682]
[1693945187675,0.011,25712.0,25711.0,4.5584382]
[1693945187951,0.011,25712.0,25711.0,4.5575382]
[1693945188103,0.011,25712.0,25711.0,4.5569982]
[1693945188308,0.011,25712.0,25711.0,4.5564582]
[1693945188506,0.011,25712.0,25711.0,4.5560982]
[1693945188717,0.011,25712.0,25711.0,4.5449382]
[1693945188927,0.011,25712.0,25711.0,4.5418782]
[1693945189129,0.011,25712.0,25711.0,4.5413382]
[1693945189306,0.011,25712.0,25711.0,4.5411582]
[1693945189694,0.011,25712.0,25711.0,4.5400782]
[1693945189802,0.011,25712.0,25711.0,4.5397182]
[1693945190003,0.011,25712.0,25711.0,4.5400782]
[1693945190309,0.011,25712.0,25711.0,4.5397182]
[1693945190526,0.011,25712.0,25711.0,4.5386382]
[1693945190720,0.011,25712.0,25711.0,4.3447282]
[1693945191185,0.011,25712.0,25711.0,4.3443682]
[1693945191512,0.011,25712.0,25711.0,4.3436482]
[1693945191693,0.011,25712.0,25711.0,4.1470882]
[1693945191846,0.011,25712.0,25711.0,4.1467282]
[1693945192047,0.011,25712.0,25711.0,4.1463682]
[1693945192243,0.011,25712.0,25711.0,4.1461282]
[1693945192451,0.011,25712.0,25711.0,4.1454082]
[1693945192646,0.011,25712.0,25711.0,4.1451682]
[1693945192970,0.011,25712.0,25711.0,4.1456482]
[1693945193174,0.011,25712.0,25711.0,4.1454082]
[1693945193520,0.011,25712.0,25711.0,4.1452882]
[1693945193698,0.011,25712.0,25711.0,4.1446882]
[1693945193899,0.011,25712.0,25711.0,4.1440882]
[1693945194097,0.011,25712.0,25711.0,4.1438482]
[1693945194330,0.011,25712.0,25711.0,4.1402482]
[1693945194509,0.011,25712.0,25711.0,4.1400082]
[1693945194712,0.011,25712.0,25711.0,4.1396482]
[1693945194928,0.011,25712.0,25711.0,4.1398882]
[1693945195119,0.011,25712.0,25711.0,4.3339782]
[1693945195419,0.011,25712.0,25711.0,4.3346982]
[1693945195626,0.011,25712.0,25711.0,4.3336182]
[1693945195823,0.011,25712.0,25711.0,4.3334982]
[1693945196045,0.011,25712.0,25711.0,4.3333782]
[1693945196229,0.011,25712.0,25711.0,4.3331382]
[1693945196384,0.011,25712.0,25711.0,4.3322982]
[1693945196583,0.011,25712.0,25711.0,4.3321782]
[1693945196787,0.011,25712.0,25711.0,4.3319382]
[1693945196991,0.011,25712.0,25711.0,4.3316982]
[1693945197195,0.011,25712.0,25711.0,4.3315782]
[1693945197548,0.011,25712.0,25711.0,4.3313382]
[1693945197736,0.011,25712.0,25711.0,4.3312182]
[1693945197942,0.011,25712.0,25711.0,4.3310982]
[1693945198145,0.011,25712.0,25711.0,4.3309782]
[1693945198372,0.011,25712.0,25711.0,4.3308582]
[1693945198574,0.011,25712.0,25711.0,4.3307382]
[1693945198694,0.011,25712.0,25711.0,4.3310982]
[1693945198929,0.011,25712.0,25711.0,4.3307382]
[1693945199129,0.011,25712.0,25711.0,4.3306182]
[1693945199453,0.011,25712.0,25711.0,4.3307382]
[1693945199853,0.011,25712.0,25711.0,4.3301382]
[1693945200055,0.011,25712.0,25711.0,4.3304982]
[1693945200255,0.011,25712.0,25711.0,4.3286982]
[1693945200594,0.011,25712.0,25711.0,4.3304982]
[1693945200796,0.011,25712.0,25711.0,4.3291782]
[1693945200929,0.011,25712.0,25711.0,4.60882689]
[1693945201133,0.011,25712.0,25711.0,4.60918689]
[1693945201419,0.011,25712.0,25711.0,4.60930689]
[1693945201622,0.011,25712.0,25711.0,4.60810689]
[1693945201825,0.011,25712.0,25711.0,4.60834689]
[1693945202008,0.011,25712.0,25711.0,4.3292982]
[1693945202207,0.011,25712.0,25711.0,4.3288182]
[1693945202410,0.011,25712.0,25711.0,4.3283382]
[1693945202634,0.011,25712.0,25711.0,4.3285782]
[1693945202842,0.011,25712.0,25711.0,4.3301382]
[1693945203064,0.011,25712.0,25711.0,4.3295382]
[1693945203273,0.011,25712.0,25711.0,4.3298982]
[1693945203478,0.011,25712.0,25711.0,4.3297782]
[1693945203659,0.011,25712.0,25711.0,4.61098689]
[1693945203879,0.011,25712.0,25711.0,4.61014689]
[1693945204066,0.011,25712.0,25711.0,4.61110689]
[1693945204239,0.011,25712.0,25711.0,4.61266689]
[1693945204589,0.011,25712.0,25711.0,4.61218689]
[1693945204804,0.011,25712.0,25711.0,4.61338689]
[1693945205022,0.011,25712.0,25711.0,4.81918689]
[1693945205231,0.011,25712.0,25711.0,4.82062689]
[1693945205407,0.011,25712.0,25711.0,4.82440689]
[1693945205636,0.011,25712.0,25711.0,4.82458689]
[1693945205839,0.011,25712.0,25711.0,4.82314689]
[1693945206048,0.011,25712.0,25711.0,4.82476689]
[1693945206256,0.011,25712.0,25711.0,4.82260689]
[1693945206717,0.011,25712.0,25711.0,4.82368689]
[1693945206961,0.011,25712.0,25711.0,4.82296689]
[1693945207218,0.011,25712.0,25711.0,4.82026689]
[1693945207467,0.011,25712.0,25711.0,4.82224689]
[1693945207704,0.011,25712.0,25711.0,4.81828689]
[1693945207906,0.011,25712.0,25711.0,4.81882689]
[1693945208038,0.011,25712.0,25711.0,4.42529689]
[1693945208251,0.011,25712.0,25711.0,4.62010689]
[1693945208621,0.011,25712.0,25711.0,4.62058689]
[1693945208827,0.011,25712.0,25711.0,4.62010689]
[1693945209036,0.011,25712.0,25711.0,4.61950689]
[1693945209211,0.011,25712.0,25711.0,4.62046689]
[1693945209415,0.011,25712.0,25711.0,4.61974689]
[1693945209649,0.011,25712.0,25711.0,4.61878689]
[1693945209855,0.011,25712.0,25711.0,4.61650689]
[1693945210069,0.011,25712.0,25711.0,4.61758689]
[1693945210254,0.011,25712.0,25711.0,4.61686689]
[1693945210487,0.011,25712.0,25711.0,4.61626689]
[1693945210662,0.011,25712.0,25711.0,4.61650689]
[1693945210864,0.011,25712.0,25711.0,4.61554689]
[1693945211074,0.011,25712.0,25711.0,4.61830689]
[1693945211278,0.011,25712.0,25711.0,4.61818689]
[1693945211413,0.011,25712.0,25711.0,4.61734689]
[1693945211613,0.011,25712.0,25711.0,4.61578689]
[1693945211865,0.001,25712.0,25711.0,4.61482689]
[1693945212035,0.001,25712.0,25711.0,4.61674689]
[1693945212440,0.001,25712.0,25711.0,4.61662689]
[1693945212784,0.001,25712.0,25711.0,4.61434689]
[1693945212962,0.001,25712.0,25711.0,4.61566689]
[1693945213158,0.001,25712.0,25711.0,4.61410689]
[1693945213403,0.001,25712.0,25711.0,4.61554689]
[1693945213566,0.001,25712.0,25711.0,4.61398689]
[1693945213972,0.001,25712.0,25711.0,4.61422689]
[1693945214161,0.001,25712.0,25711.0,4.61338689]
[1693945214365,0.001,25712.0,25711.0,4.61398689]
[1693945214574,0.001,25712.0,25711.0,4.61374689]
[1693945214712,0.001,25712.0,25711.0,4.61350689]
[1693945214917,0.001,25712.0,25711.0,4.61338689]
[1693945215159,0.001,25712.0,25711.0,4.61350689]
[1693945215360,0.001,25712.0,25711.0,4.61530689]
[1693945215568,0.001,25712.0,25711.0,4.61326689]
[1693945215778,0.001,25712.0,25711.0,4.61194689]
[1693945215981,0.191,25712.0,25711.0,4.41773689]
[1693945216183,0.191,25712.0,25711.0,4.41761689]
[1693945216489,0.191,25712.0,25711.0,4.41809689]
[1693945216686,0.191,25712.0,25711.0,4.41689689]
[1693945217114,0.191,25712.0,25711.0,4.41653689]
[1693945217323,0.191,25712.0,25711.0,4.61086689]
[1693945217463,0.191,25712.0,25711.0,4.60954689]
[1693945217693,0.191,25712.0,25711.0,4.60918689]
[1693945217866,0.191,25712.0,25711.0,4.60870689]
[1693945218269,0.191,25712.0,25711.0,4.60942689]
[1693945218477,0.191,25712.0,25711.0,4.41521689]
[1693945218831,0.191,25712.0,25711.0,4.41089689]
[1693945219036,0.191,25712.0,25711.0,4.41077689]
[1693945219237,0.191,25712.0,25711.0,4.41197689]
[1693945219388,0.191,25712.0,25711.0,4.41233689]
[1693945219588,0.191,25712.0,25711.0,4.41161689]
[1693945219815,0.187312,25712.0,25711.0,4.41161689]
[1693945220017,0.187312,25712.0,25711.0,4.41029689]
[1693945220566,0.187312,25712.0,25711.0,4.40849689]
[1693945220906,0.187312,25712.0,25711.0,4.40153689]
[1693945221109,0.187312,25712.0,25711.0,4.40045689]
[1693945221556,0.187312,25712.0,25711.0,4.40057689]
[1693945221963,0.187312,25712.0,25711.0,4.39733689]
[1693945222139,0.187312,25712.0,25711.0,4.39037689]
[1693945222452,0.187312,25712.0,25711.0,4.38269689]
[1693945222659,0.187312,25712.0,25711.0,4.37945689]
[1693945222855,0.187312,25712.0,25711.0,4.37417689]
[1693945223055,0.187312,25712.0,25711.0,4.37381689]
[1693945223285,0.187312,25712.0,25711.0,4.37405689]
[1693945223493,0.187312,25712.0,25711.0,4.37441689]
[1693945223696,0.187312,25712.0,25711.0,4.37549689]
[1693945223899,0.187312,25712.0,25711.0,4.37573689]
[1693945224103,0.187312,25712.0,25711.0,4.37597689]
[1693945224304,0.187312,25712.0,25711.0,4.37657689]
[1693945224516,0.187312,25712.0,25711.0,4.37777689]
[1693945224731,0.187312,25712.0,25711.0,4.37813689]
[1693945224912,0.187312,25712.0,25711.0,4.37837689]
[1693945225114,0.187312,25712.0,25711.0,4.37573689]
[1693945225334,0.187312,25712.0,25711.0,4.37537689]
[1693945225530,0.187312,25712.0,25711.0,4.37561689]
[1693945225736,0.187312,25712.0,25711.0,4.37465689]
[1693945226033,0.187312,25712.0,25711.0,4.37501689]
[1693945226259,0.187312,25712.0,25711.0,4.37525689]
[1693945226400,0.187312,25712.0,25711.0,4.37537689]
[1693945226734,0.187312,25712.0,25711.0,4.37669689]
[1693945226937,0.187312,25712.0,25711.0,4.37681689]
[1693945227155,0.187312,25712.0,25711.0,4.37693689]
[1693945227366,0.187312,25712.0,25711.0,4.37801689]
[1693945227559,0.187312,25712.0,25711.0,4.37741689]
[1693945227702,0.187312,25712.0,25711.0,4.37789689]
[1693945227916,0.187312,25712.0,25711.0,4.37801689]
[1693945228114,0.187312,25712.0,25711.0,4.37813689]
[1693945228367,0.187312,25712.0,25711.0,4.37825689]
[1693945228540,0.187312,25712.0,25711.0,4.37789689]
[1693945228763,0.187312,25712.0,25711.0,4.37801689]
[1693945228923,0.187312,25712.0,25711.0,4.37813689]
[1693945229122,0.187312,25712.0,25711.0,4.10009516]
[1693945229339,0.187312,25712.0,25711.0,4.29478516]
[1693945229541,0.187312,25712.0,25711.0,4.29442516]
[1693945229772,0.187312,25712.0,25711.0,4.29490516]
[1693945230265,0.187312,25712.0,25711.0,4.29502516]
[1693945230446,0.187312,25712.0,25711.0,4.29514516]
[1693945230643,0.187312,25712.0,25711.0,4.29562516]
[1693945230842,0.187312,25712.0,25711.0,4.29538516]
[1693945231323,0.187312,25712.0,25711.0,4.29610516]
[1693945231530,0.187312,25712.0,25711.0,4.29502516]
[1693945231735,0.187312,25712.0,25711.0,4.29514516]
[1693945232183,0.187312,25712.0,25711.0,4.29526516]
[1693945232386,0.187312,25712.0,25711.0,4.29538516]
[1693945232763,0.187312,25712.0,25711.0,4.29550516]
[1693945232998,0.187312,25712.0,25711.0,4.29562516]
[1693945233204,0.187312,25712.0,25711.0,4.29601314]
[1693945233399,0.187312,25712.0,25711.0,4.29589314]
[1693945233608,0.187312,25712.0,25711.0,4.29673314]
[1693945234093,0.187312,25712.0,25711.0,4.29697314]
[1693945234286,0.187312,25712.0,25711.0,4.29325314]
[1693945234511,0.187312,25712.0,25711.0,4.29337314]
[1693945234807,0.187312,25712.0,25711.0,4.19087314]
[1693945235006,0.187312,25712.0,25711.0,3.56857538]
[1693945235361,0.2454802,25712.0,25711.0,2.81958252]
[1693945235502,0.187312,25712.0,25711.0,2.82432252]
[1693945235708,0.187312,25712.0,25711.0,2.82396252]
[1693945235935,0.2454802,25712.0,25711.0,2.82360252]
[1693945236140,0.2454802,25712.0,25711.0,2.82396252]
[1693945236343,0.2454802,25712.0,25711.0,2.82450252]
[1693945236537,0.2454802,25712.0,25711.0,2.82588252]
[1693945236749,0.2454802,25712.0,25711.0,2.82666252]
[1693945236893,0.2454802,25712.0,25711.0,2.82720252]
[1693945237095,0.2454802,25712.0,25711.0,2.82804252]
[1693945237347,0.2454802,25712.0,25711.0,3.01534168]
[1693945237519,0.2454802,25712.0,25711.0,3.01570168]
[1693945237725,0.2454802,25712.0,25711.0,3.01624168]
[1693945237926,0.2454802,25712.0,25711.0,3.01660168]
[1693945238130,0.2454802,25712.0,25711.0,2.83440252]
[1693945238337,0.2454802,25712.0,25711.0,2.83470252]
[1693945238535,0.2454802,25712.0,25711.0,2.83524252]
[1693945238731,0.2454802,25712.0,25711.0,2.83536252]
[1693945238971,0.2454802,25712.0,25711.0,3.02139328]
[1693945239103,0.2454802,25712.0,25711.0,3.02163328]
[1693945239310,0.2454802,25712.0,25711.0,3.60552028]
[1693945239512,0.2454802,25712.0,25711.0,3.55856952]
[1693945239714,0.2454802,25712.0,25711.0,3.56696952]
[1693945239920,0.2454802,25712.0,25711.0,3.56468952]
[1693945240175,0.2454802,25712.0,25711.0,3.56504952]
[1693945240397,0.2454802,25712.0,25711.0,3.56540952]
[1693945240561,0.2454802,25712.0,25711.0,3.56588952]
[1693945240760,0.2454802,25712.0,25711.0,3.56564952]
[1693945240959,0.2454802,25712.0,25711.0,3.56576952]
[1693945241200,0.2454802,25712.0,25711.0,3.56588952]
[1693945241426,0.2454802,25712.0,25711.0,3.56516952]
[1693945242102,0.2454802,25712.0,25711.0,3.56528952]
[1693945242257,0.2454802,25712.0,25711.0,3.56552952]
[1693945242457,0.2454802,25712.0,25711.0,3.56612952]
[1693945242690,0.2454802,25712.0,25711.0,3.56588952]
[1693945242863,0.2454802,25712.0,25711.0,3.56528952]
[1693945243087,0.2454802,25712.0,25711.0,3.56540952]
[1693945243282,0.2454802,25712.0,25711.0,3.56552952]
[1693945243483,0.2454802,25712.0,25711.0,3.56636952]
[1693945243705,0.2454802,25712.0,25711.0,4.68735985]
[1693945243856,0.2454802,25712.0,25711.0,4.69035985]
[1693945244062,0.2454802,25712.0,25711.0,4.69071985]
[1693945244280,0.2454802,25712.0,25711.0,4.68819985]
[1693945244486,0.2454802,25712.0,25711.0,4.68675985]
[1693945244737,0.2454802,25712.0,25711.0,4.68723985]
[1693945244935,0.2454802,25712.0,25711.0,4.68987985]
[1693945245337,0.2454802,25712.0,25711.0,4.69023985]
[1693945245537,0.2454802,25712.0,25711.0,4.69215985]
[1693945245752,0.2454802,25712.0,25711.0,4.69311985]
[1693945245982,0.2454802,25712.0,25711.0,4.69323985]
[1693945246182,0.2454802,25712.0,25711.0,4.69263985]
[1693945246330,0.2454802,25712.0,25711.0,4.87663211]
[1693945246681,0.2454802,25712.0,25711.0,4.87579211]
[1693945246860,0.2454802,25712.0,25711.0,4.87699211]
[1693945247037,0.2454802,25712.0,25711.0,4.87807211]
[1693945247369,0.2454802,25712.0,25711.0,4.87615211]
[1693945247565,0.2454802,25712.0,25711.0,4.87627211]
[1693945247768,0.2454802,25712.0,25711.0,4.87615211]
[1693945248009,0.2454802,25712.0,25711.0,4.87651211]
[1693945248185,0.2454802,25712.0,25711.0,4.87675211]
[1693945248416,0.2454802,25712.0,25711.0,4.87843211]
[1693945248568,0.2454802,25712.0,25711.0,4.87723211]
[1693945248774,0.2454802,25712.0,25711.0,4.87831211]
[1693945249198,0.2454802,25712.0,25711.0,4.87843211]
[1693945249527,0.2454802,25712.0,25711.0,4.87591211]
[1693945249731,0.2454802,25712.0,25711.0,4.87627211]
[1693945249957,0.2454802,25712.0,25711.0,4.87687211]
[1693945250119,0.2454802,25712.0,25711.0,4.87579211]
[1693945250320,0.2454802,25712.0,25711.0,4.87591211]
[1693945250727,0.2454802,25712.0,25711.0,4.88143211]
[1693945250923,0.2454802,25712.0,25711.0,4.87915211]
[1693945251137,0.2454802,25712.0,25711.0,4.87639211]
[1693945251290,0.2454802,25712.0,25711.0,4.6429127]
[1693945251713,0.2454802,25712.0,25711.0,4.87639211]
[1693945251978,0.2454802,25712.0,25711.0,4.87831211]
[1693945252151,0.2454802,25712.0,25711.0,4.87843211]
[1693945252352,0.2454802,25712.0,25711.0,4.87795211]
[1693945252556,0.2454802,25712.0,25711.0,4.6447127]
[1693945252766,0.2454802,25712.0,25711.0,4.87891211]
[1693945252962,0.2454802,25712.0,25711.0,4.87903211]
[1693945253186,0.2454802,25712.0,25711.0,4.69263985]
[1693945253386,0.2454802,25712.0,25711.0,4.88142986]
[1693945253582,0.2454802,25712.0,25711.0,4.88106986]
[1693945253789,0.2454802,25712.0,25711.0,4.88070986]
[1693945253989,0.2454802,25712.0,25711.0,4.88118986]
[1693945254212,0.2454802,25712.0,25711.0,4.88046986]
[1693945254415,0.2454802,25712.0,25711.0,4.64807045]
[1693945254589,0.2454802,25712.0,25711.0,4.65035045]
[1693945254787,0.2454802,25712.0,25711.0,4.88118986]
[1693945255058,0.2454802,25712.0,25711.0,4.87974986]
[1693945255269,0.2454802,25712.0,25711.0,4.88082986]
[1693945255470,0.2454802,25712.0,25711.0,4.88094986]
[1693945255690,0.2454802,25712.0,25711.0,4.88106986]
[1693945255877,0.2454802,25712.0,25711.0,4.88178986]
[1693945256174,0.2454802,25712.0,25711.0,4.87926986]
[1693945256309,0.2454802,25712.0,25711.0,4.88034986]
[1693945256513,0.2454802,25712.0,25711.0,4.88058986]
[1693945256917,0.2454802,25712.0,25711.0,4.87902986]
[1693945257111,0.2454802,25712.0,25711.0,4.88022986]
[1693945257341,0.2454802,25712.0,25711.0,4.87938986]
[1693945257718,0.2454802,25712.0,25711.0,4.87950986]
[1693945257918,0.2454802,25712.0,25711.0,4.87938986]
[1693945258157,0.2454802,25712.0,25711.0,4.87974986]
[1693945258373,0.2454802,25712.0,25711.0,4.87926986]
[1693945258577,0.2454802,25712.0,25711.0,4.87806986]
[1693945258802,0.2454802,25712.0,25711.0,4.88250986]
[1693945259004,0.2454802,25712.0,25711.0,4.88022986]
[1693945259204,0.2454802,25712.0,25711.0,4.88034986]
[1693945259459,0.2454802,25712.0,25711.0,4.87962986]
[1693945259633,0.2454802,25712.0,25711.0,4.87986986]
[1693945259831,0.2454802,25712.0,25711.0,4.88118986]
[1693945260218,0.2454802,25712.0,25711.0,4.88010986]
[1693945260416,0.2454802,25712.0,25711.0,4.87998986]
[1693945260627,0.2454802,25712.0,25711.0,4.88010986]
[1693945260806,0.2454802,25712.0,25711.0,4.87950986]
[1693945261153,0.2454802,25712.0,25711.0,4.88058986]
[1693945261484,0.2454802,25712.0,25711.0,4.88130986]
[1693945261682,0.2454802,25712.0,25711.0,4.69359985]
[1693945262087,0.2454802,25712.0,25711.0,4.69347985]
[1693945262555,0.2454802,25712.0,25711.0,4.69359985]
[1693945262766,0.2454802,25712.0,25711.0,4.69479985]
[1693945262908,0.2454802,25712.0,25711.0,4.69503985]
[1693945263277,0.2454802,25712.0,25711.0,4.69023985]
[1693945263414,0.2454802,25712.0,25711.0,4.68627985]
[1693945263635,0.2454802,25712.0,25711.0,4.68855985]
[1693945263826,0.2454802,25712.0,25711.0,4.68951985]
[1693945264026,0.2454802,25712.0,25711.0,4.69527985]
[1693945264232,0.2454802,25712.0,25711.0,4.69659985]
[1693945264479,0.2454802,25712.0,25711.0,4.69683985]
[1693945264686,0.2454802,25712.0,25711.0,4.69671985]
[1693945264917,0.2454802,25712.0,25711.0,4.69719985]
[1693945265113,0.2454802,25712.0,25711.0,4.69587985]
[1693945265451,0.2454802,25712.0,25711.0,4.69371985]
[1693945265652,0.2454802,25712.0,25711.0,4.69515985]
[1693945265879,0.2454802,25712.0,25711.0,4.69563985]
[1693945266097,0.2454802,25712.0,25711.0,4.69611985]
[1693945266298,0.2454802,25712.0,25711.0,4.69491985]
[1693945266507,0.2454802,25712.0,25711.0,4.69515985]
[1693945266707,0.2454802,25712.0,25711.0,4.69611985]
[1693945266911,0.2454802,25712.0,25711.0,4.69515985]
[1693945267110,0.2454802,25712.0,25711.0,4.69479985]
[1693945267315,0.2454802,25712.0,25711.0,4.69503985]
[1693945267503,0.2454802,25712.0,25711.0,4.69527985]
[1693945267702,0.2454802,25712.0,25711.0,4.88504753]
[1693945267911,0.2454802,25712.0,25711.0,4.88528753]
[1693945268108,0.2454802,25712.0,25711.0,4.88516753]
[1693945268332,0.2454802,25712.0,25711.0,4.88408753]
[1693945268534,0.2454802,25712.0,25711.0,4.89032753]
[1693945268763,0.2454802,25712.0,25711.0,4.89008753]
[1693945268961,0.2454802,25712.0,25711.0,4.89044753]
[1693945269074,0.2454802,25712.0,25711.0,4.88996753]
[1693945269274,0.2454802,25712.0,25711.0,4.89008753]
[1693945269474,0.2454802,25712.0,25711.0,4.89020753]
[1693945269681,0.2454802,25712.0,25711.0,4.89332753]
[1693945269901,0.2454802,25712.0,25711.0,4.89272753]
[1693945270112,0.2454802,25712.0,25711.0,4.89296753]
[1693945270313,0.2454802,25712.0,25711.0,4.89248753]
[1693945270530,0.2454802,25712.0,25711.0,4.89116753]
[1693945270771,0.2454802,25712.0,25711.0,4.89128753]
[1693945270936,0.2454802,25712.0,25711.0,4.89152753]
[1693945271188,0.2454802,25712.0,25711.0,4.70523985]
[1693945271408,0.2454802,25712.0,25711.0,4.70595985]
[1693945271611,0.2454802,25712.0,25711.0,4.70691985]
[1693945271810,0.2454802,25712.0,25711.0,4.70511985]
[1693945272009,0.2454802,25712.0,25711.0,4.70667985]
[1693945272211,0.2454802,25712.0,25711.0,4.70643985]
[1693945272438,0.2454802,25712.0,25711.0,4.70667985]
[1693945272640,0.2454802,25712.0,25711.0,4.70703985]
[1693945272841,0.2454802,25712.0,25711.0,4.70727985]
[1693945273041,0.2454802,25712.0,25711.0,4.70751985]
[1693945273254,0.2454802,25712.0,25711.0,4.70655985]
[1693945273487,0.2454802,25712.0,25711.0,4.70667985]
[1693945273657,0.2454802,25712.0,25711.0,4.70679985]
[1693945273857,0.2454802,25712.0,25711.0,4.70667985]
[1693945274055,0.2454802,25712.0,25711.0,4.70739985]
[1693945274408,0.2454802,25712.0,25711.0,4.70763985]
[1693945274607,0.2454802,25712.0,25711.0,4.70727985]
[1693945274806,0.2454802,25712.0,25711.0,4.70667985]
[1693945275025,0.2454802,25712.0,25711.0,4.70757985]
[1693945275224,0.2454802,25712.0,25711.0,4.70943985]
[1693945275435,0.2454802,25712.0,25711.0,4.71255985]
[1693945275635,0.2454802,25712.0,25711.0,4.71123985]
[1693945275858,0.2454802,25712.0,25711.0,4.71135985]
[1693945275982,0.2454802,25712.0,25711.0,4.71015985]
[1693945276408,0.2454802,25712.0,25711.0,4.71039985]
[1693945276606,0.2454802,25712.0,25711.0,2.95549885]
[1693945276855,0.187312,25712.0,25711.0,4.12207285]
[1693945277190,0.187312,25712.0,25711.0,3.97909285]
[1693945277391,0.2454802,25712.0,25711.0,4.71219985]
[1693945277506,0.2454802,25712.0,25711.0,4.56303985]
[1693945277702,0.2454802,25712.0,25711.0,4.56309985]
[1693945278313,0.2454802,25712.0,25711.0,4.56327985]
[1693945278745,0.2454802,25712.0,25711.0,4.56291985]
[1693945278954,0.2454802,25712.0,25711.0,4.56297985]
[1693945279177,0.2454802,25712.0,25711.0,4.71027985]
[1693945279379,0.2454802,25712.0,25711.0,4.70985969]
[1693945279723,0.2454802,25712.0,25711.0,4.71093969]
[1693945279927,0.2454802,25712.0,25711.0,4.71105969]
[1693945280077,0.2454802,25712.0,25711.0,4.70997969]
[1693945280426,0.2454802,25712.0,25711.0,4.71157187]
[1693945280627,0.2454802,25712.0,25711.0,4.71061187]
[1693945280931,0.2454802,25712.0,25711.0,4.71325187]
[1693945281134,0.2454802,25712.0,25711.0,4.71337187]
[1693945281298,0.2454802,25712.0,25711.0,4.71349187]
[1693945281490,0.2454802,25712.0,25711.0,4.71457187]
[1693945281726,0.2454802,25712.0,25711.0,4.71469187]
[1693945281952,0.2454802,25712.0,25711.0,4.71181187]
[1693945282382,0.2454802,25712.0,25711.0,4.71289187]
[1693945282589,0.2454802,25712.0,25711.0,4.73641187]
[1693945282791,0.2454802,25712.0,25711.0,4.74097187]
[1693945283402,0.2454802,25712.0,25711.0,4.74109187]
[1693945283976,0.2454802,25712.0,25711.0,4.74097187]
[1693945284182,0.2454802,25712.0,25711.0,4.50728044]
[1693945284461,0.2454802,25712.0,25711.0,4.50704044]
[1693945284617,0.2454802,25712.0,25711.0,4.50668044]
[1693945284823,0.2454802,25712.0,25711.0,4.50680044]
[1693945284993,0.2454802,25712.0,25711.0,4.50668044]
[1693945285206,0.2454802,25712.0,25711.0,4.51040044]
[1693945285611,0.2454802,25712.0,25711.0,4.50728044]
[1693945285845,0.2454802,25712.0,25711.0,4.50788044]
[1693945286293,0.2454802,25712.0,25711.0,5.27224571]
[1693945286505,0.2454802,25712.0,25711.0,5.51978676]
[1693945286719,0.2454802,25712.0,25711.0,5.77061631]
[1693945286930,0.187312,25712.0,25711.0,5.76953631]
[1693945287133,0.187312,25712.0,25711.0,4.65022598]
[1693945287347,0.187312,25712.0,25711.0,5.50837105]
[1693945287565,0.187312,25712.0,25711.0,5.90291547]
[1693945287771,0.187312,25712.0,25711.0,6.25671597]
[1693945287975,0.187312,25712.0,25711.0,6.26085597]
[1693945288175,0.187312,25712.0,25711.0,6.25761597]
[1693945288371,0.187312,25712.0,25711.0,6.25887597]
[1693945288584,0.187312,25712.0,25711.0,6.26067597]
[1693945288733,0.187312,25712.0,25711.0,6.25923597]
[1693945288957,0.187312,25712.0,25711.0,6.25797597]
[1693945289161,0.187312,25712.0,25711.0,6.45170597]
[1693945289371,0.187312,25712.0,25711.0,6.45080597]
[1693945289642,0.187312,25712.0,25711.0,6.44666597]
[1693945289823,0.187312,25712.0,25711.0,6.45566597]
[1693945290010,0.187312,25712.0,25711.0,6.45476597]
[1693945290205,0.187312,25712.0,25711.0,6.45458597]
[1693945290410,0.187312,25712.0,25711.0,6.47762597]
[1693945290605,0.187312,25712.0,25711.0,6.47546597]
[1693945290828,0.187312,25712.0,25711.0,6.47438597]
[1693945291032,0.187312,25712.0,25711.0,6.47366597]
[1693945291257,0.187312,25712.0,25711.0,6.19115642]